bitfinex-derivatives/quotes_BTCF0:USTF0_20251230
["timestamp","ask_amount","ask_price","bid_price","bid_amount"]
[1767137703141,0.0112992,88607.0,88588.0,0.0113014]
[1767137703337,0.17778915,88606.0,88589.0,0.05656]
[1767137703534,0.1526,88606.0,88590.0,0.0113012]
[1767137704141,0.0112992,88607.0,88590.0,0.0113012]
[1767137704342,0.05656,88606.0,88589.0,0.05656]
[1767137706846,0.0112992,88607.0,88589.0,0.05656]
[1767137707046,0.05656,88606.0,88589.0,0.05656]
[1767137707238,0.0112992,88607.0,88589.0,0.05656]
[1767137707438,0.05656,88606.0,88589.0,0.05656]
[1767137710853,0.05656,88606.0,88589.0,0.04096]
[1767137712456,0.0112996,88603.0,88589.0,0.04096]
[1767137714859,0.0112999,88601.0,88589.0,0.04096]
[1767137716763,0.0112995,88604.0,88589.0,0.04096]
[1767137717957,0.0112998,88602.0,88589.0,0.04096]
[1767137718958,0.01055488,88602.0,88589.0,0.04096]
[1767137719747,0.0112999,88601.0,88589.0,0.04096]
[1767137720060,0.0113,88600.0,88589.0,0.04096]
[1767137720358,0.0113,88600.0,88590.0,0.01128]
[1767137723160,0.0112974,88620.0,88590.0,0.13531492]
[1767137723358,0.0112979,88617.0,88598.0,0.0113002]
[1767137723563,0.0112979,88617.0,88599.0,0.1526]
[1767137725363,0.05451988,88623.0,88600.0,0.0112999]
[1767137725568,0.0112973,88621.0,88600.0,0.0112999]
[1767137725964,0.0112973,88621.0,88602.0,0.0112996]
[1767137727671,0.0112979,88617.0,88599.0,0.1526]
[1767137728365,0.0112981,88615.0,88599.0,0.1526]
[1767137728570,0.05656,88626.0,88599.0,0.1526]
[1767137728770,0.11084864,88626.0,88599.0,0.1526]
[1767137729265,0.11084864,88626.0,88600.0,0.1526]
[1767137729969,0.05656,88626.0,88600.0,0.1526]
[1767137730170,0.11123564,88626.0,88600.0,0.1526]
[1767137730669,0.0112983,88613.0,88600.0,0.1526]
[1767137733572,0.0112983,88613.0,88601.0,0.05656]
[1767137737472,0.0112979,88617.0,88601.0,0.05656]
[1767137737672,0.46760554,88622.0,88601.0,0.05656]
[1767137738473,0.0112983,88613.0,88601.0,0.05656]
[1767137738675,0.0112983,88613.0,88596.0,0.01146984]
[1767137738876,0.0112983,88613.0,88597.0,0.1526]
[1767137739469,0.0112981,88615.0,88598.0,0.0113001]
[1767137741577,0.0112981,88615.0,88597.0,0.1526]
[1767137743079,0.0112981,88615.0,88598.0,0.01128]
[1767137743981,0.0112978,88617.0,88598.0,0.01128]
[1767137744278,0.46830761,88622.0,88598.0,0.01128]
[1767137744279,0.0112981,88615.0,88598.0,0.01128]
[1767137745176,0.41439281,88622.0,88598.0,0.01128]
[1767137745376,0.46766461,88622.0,88599.0,0.0113001]
[1767137745576,0.41439281,88622.0,88599.0,0.0113001]
[1767137746181,0.0112977,88618.0,88599.0,0.0113001]
[1767137749382,0.0112977,88618.0,88598.0,0.01128]
[1767137751577,0.0112977,88618.0,88598.0,0.0225802]
[1767137753274,0.0112977,88618.0,88600.0,0.0112999]
[1767137753684,0.0112977,88618.0,88598.0,0.01128]
[1767137754185,0.0112977,88618.0,88599.0,0.15256]
[1767137755185,0.0112977,88618.0,88599.0,0.16386]
[1767137755684,0.011298,88616.0,88599.0,0.15256]
[1767137759290,0.05656,88620.0,88599.0,0.15256]
[1767137759881,0.0112983,88613.0,88599.0,0.15256]
[1767137760590,0.05656,88620.0,88599.0,0.15256]
[1767137761486,0.0112979,88617.0,88599.0,0.15256]
[1767137762990,0.0112979,88617.0,88600.0,0.01128]
[1767137764698,0.0112977,88618.0,88600.0,0.01128]
[1767137766900,0.05656,88620.0,88600.0,0.01128]
[1767137768102,0.0112976,88619.0,88600.0,0.01128]
[1767137768497,0.0112978,88617.0,88600.0,0.01128]
[1767137768802,0.05656,88620.0,88600.0,0.01128]
[1767137770206,0.0112978,88618.0,88600.0,0.01128]
[1767137771809,0.0112976,88619.0,88601.0,0.05656]
[1767137772310,0.0112978,88617.0,88601.0,0.05656]
[1767137774214,0.18056779,88620.0,88601.0,0.05656]
[1767137774215,0.0112977,88618.0,88601.0,0.05656]
[1767137774810,0.18056779,88620.0,88601.0,0.05656]
[1767137775710,0.0112978,88617.0,88601.0,0.05656]
[1767137776414,0.0112976,88619.0,88601.0,0.05656]
[1767137776914,0.0112978,88617.0,88601.0,0.05656]
[1767137784222,0.19186529,88620.0,88601.0,0.0678598]
[1767137784925,0.0112977,88618.0,88601.0,0.0678598]
[1767137785314,0.0112977,88618.0,88601.0,0.05656]
[1767137785714,0.18056779,88620.0,88601.0,0.05656]
[1767137786624,0.18056779,88620.0,88602.0,0.01128]
[1767137787221,0.0112976,88619.0,88602.0,0.01128]
[1767137788625,0.0112978,88617.0,88602.0,0.01128]
[1767137788926,0.0112977,88618.0,88602.0,0.01128]
[1767137789224,0.0112981,88615.0,88602.0,0.0678]
[1767137797233,0.0112977,88618.0,88602.0,0.0678]
[1767137798030,0.18056779,88620.0,88602.0,0.0678]
[1767137798336,0.0112975,88619.0,88602.0,0.0678]
[1767137802843,0.18056779,88620.0,88602.0,0.0678]
[1767137803029,0.19186519,88620.0,88602.0,0.0790996]
[1767137803936,0.0112977,88618.0,88602.0,0.0678]
[1767137805241,0.18056779,88620.0,88602.0,0.0678]
[1767137805537,0.0112976,88619.0,88602.0,0.0678]
[1767137807440,0.0112978,88617.0,88602.0,0.0678]
[1767137812442,0.18056779,88620.0,88602.0,0.0678]
[1767137812946,0.0112976,88619.0,88602.0,0.0678]
[1767137813243,0.13530519,88620.0,88602.0,0.0790997]
[1767137813441,0.13530519,88620.0,88602.0,0.0678]
[1767137814346,0.0112977,88618.0,88602.0,0.0678]
[1767137814846,0.12400779,88620.0,88602.0,0.0678]
[1767137816547,0.13530519,88620.0,88602.0,0.05652]
[1767137819552,0.13530519,88620.0,88603.0,0.01128]
[1767137822656,0.0112977,88618.0,88603.0,0.01128]
[1767137822852,0.12400779,88620.0,88603.0,0.01128]
[1767137824249,0.0112975,88619.0,88603.0,0.01128]
[1767137825152,0.12400779,88620.0,88603.0,0.01128]
[1767137825355,0.0112977,88618.0,88603.0,0.01128]
[1767137826463,0.0112976,88619.0,88603.0,0.01128]
[1767137831071,0.0112978,88617.0,88603.0,0.01128]
[1767137831265,0.13530529,88620.0,88603.0,0.01128]
[1767137831570,0.13530529,88620.0,88602.0,0.05652]
[1767137832162,0.0112977,88618.0,88602.0,0.05652]
[1767137832358,0.12400779,88620.0,88602.0,0.05652]
[1767137832563,0.0112976,88619.0,88602.0,0.05652]
[1767137833278,0.0112975,88620.0,88602.0,0.05652]
[1767137833468,0.0112977,88618.0,88602.0,0.05652]
[1767137834874,0.0112977,88618.0,88603.0,0.01128]
[1767137835775,0.05652,88621.0,88603.0,0.01128]
[1767137836075,0.0112979,88616.0,88603.0,0.01128]
[1767137853798,0.05652,88621.0,88603.0,0.01128]
[1767137853991,0.0678173,88621.0,88603.0,0.01128]
[1767137856795,0.0678173,88621.0,88602.0,0.05652]
[1767137857998,0.0112977,88618.0,88602.0,0.05652]
[1767137858297,0.0112977,88618.0,88596.0,0.00016934]
[1767137858492,0.05652,88621.0,88597.0,0.15252]
[1767137859697,0.05652,88621.0,88598.0,0.01128]
[1767137860294,0.0678173,88621.0,88599.0,0.15252]
[1767137860799,0.0678173,88621.0,88598.0,0.01128]
[1767137860991,0.0678173,88621.0,88600.0,0.05652]
[1767137861591,0.0678173,88621.0,88598.0,0.01128]
[1767137861798,0.0112976,88619.0,88599.0,0.15252]
[1767137862191,0.0678173,88621.0,88599.0,0.15252]
[1767137863090,0.0112976,88619.0,88599.0,0.15252]
[1767137865196,0.0112979,88617.0,88599.0,0.15252]
[1767137869400,0.0112975,88619.0,88599.0,0.15252]
[1767137869600,0.05652,88621.0,88599.0,0.15252]
[1767137870498,0.0112976,88619.0,88599.0,0.15252]
[1767137872102,0.0112976,88619.0,88600.0,0.0112999]
[1767137872293,0.0112976,88619.0,88599.0,0.15252]
[1767137872696,0.05356321,88625.0,88599.0,0.15252]
[1767137872899,0.0112957,88634.0,88591.0,0.08098135]
[1767137872900,0.0112978,88617.0,88591.0,0.08098135]
[1767137873090,0.0113013,88590.0,88583.0,0.10126542]
[1767137873294,0.05351502,88595.0,88580.0,0.05652]
[1767137873494,0.0113012,88591.0,88580.0,0.05652]
[1767137874197,0.00016934,88594.0,88580.0,0.05652]
[1767137874606,0.05652,88599.0,88581.0,0.0113023]
[1767137874897,0.05274487,88600.0,88581.0,0.0113023]
[1767137875103,0.05652,88603.0,88584.0,0.011302]
[1767137875405,0.09604,88605.0,88584.0,0.011302]
[1767137877299,0.09604,88605.0,88580.0,0.05652]
[1767137878096,0.09604,88605.0,88590.0,0.0113011]
[1767137878298,0.05370448,88610.0,88592.0,0.0113009]
[1767137878605,0.05652,88614.0,88592.0,0.0113009]
[1767137878908,0.05274008,88614.0,88594.0,0.01146994]
[1767137880098,0.05274008,88614.0,88594.0,0.00016934]
[1767137880505,0.05274008,88614.0,88603.0,0.0112996]
[1767137880701,0.05471092,88614.0,88604.0,0.05652]
[1767137880907,0.01128156,88614.0,88604.0,0.05652]
[1767137881103,0.05652,88623.0,88605.0,0.0112992]
[1767137881299,0.05652,88623.0,88608.0,0.0112989]
[1767137882310,0.05652,88623.0,88605.0,0.0112993]
[1767137882514,0.0112965,88627.0,88605.0,0.0112993]
[1767137885821,0.0678165,88627.0,88605.0,0.0112993]
[1767137886321,0.05652,88627.0,88605.0,0.0112993]
[1767137886716,0.0678165,88627.0,88605.0,0.0112993]
[1767137886922,0.0112965,88627.0,88605.0,0.0112993]
[1767137887821,0.0112965,88627.0,88604.0,0.05652]
[1767137888325,0.0678165,88627.0,88604.0,0.05652]
[1767137888818,0.0678165,88627.0,88605.0,0.0112993]
[1767137889324,0.0534912,88628.0,88605.0,0.0112993]
[1767137889524,0.05652,88627.0,88605.0,0.0112993]
[1767137890225,0.0647877,88628.0,88604.0,0.05652]
[1767137890421,0.0112967,88626.0,88605.0,0.0112993]
[1767137891725,0.0112969,88624.0,88604.0,0.05652]
[1767137891921,0.0112972,88622.0,88604.0,0.05652]
[1767137892526,0.12399356,88620.0,88604.0,0.05652]
[1767137893026,0.05652,88627.0,88604.0,0.05652]
[1767137893228,0.12399356,88620.0,88604.0,0.05652]
[1767137893729,0.12399356,88620.0,88605.0,0.01128]
[1767137897932,0.12399356,88620.0,88605.0,0.0225793]
[1767137898131,0.0112969,88624.0,88605.0,0.0225793]
[1767137898335,0.05652,88627.0,88605.0,0.01128]
[1767137898336,0.0112972,88622.0,88605.0,0.01128]
[1767137899132,0.0112969,88625.0,88606.0,0.0112991]
[1767137899333,0.0112973,88621.0,88605.0,0.01128]
[1767137900431,0.12399356,88620.0,88606.0,0.15252]
[1767137900631,0.0112979,88617.0,88606.0,0.15252]
[1767137901633,0.0112976,88619.0,88606.0,0.15252]
[1767137904234,0.0112979,88617.0,88606.0,0.15252]
[1767137905435,0.13529106,88620.0,88606.0,0.15252]
[1767137906143,0.0112977,88618.0,88606.0,0.15252]
[1767137907837,0.12399356,88620.0,88606.0,0.15252]
[1767137908537,0.0112978,88617.0,88606.0,0.15252]
[1767137908939,0.0112978,88617.0,88607.0,0.01128]
[1767137910740,0.0112976,88619.0,88607.0,0.01128]
[1767137911035,0.0112981,88615.0,88594.0,4e-08]
[1767137911235,0.0113003,88598.0,88588.0,0.05652]
[1767137911442,0.0113005,88596.0,88588.0,0.05652]
[1767137914342,0.00016934,88601.0,88588.0,0.05652]
[1767137914641,0.0113004,88597.0,88588.0,0.05652]
[1767137914831,0.13529366,88600.0,88588.0,0.05652]
[1767137915034,0.0113003,88598.0,88588.0,0.05652]
[1767137916343,0.12399356,88600.0,88588.0,0.05652]
[1767137917240,0.0113001,88599.0,88588.0,0.05652]
[1767137924343,0.12399356,88600.0,88588.0,0.05652]
[1767137925543,0.00016934,88601.0,88588.0,0.05652]
[1767137925844,0.05656,88606.0,88588.0,0.05652]
[1767137927752,0.05656,88606.0,88588.0,0.0678214]
[1767137930247,0.0112994,88605.0,88588.0,0.05652]
[1767137931453,0.05656,88606.0,88588.0,0.05652]
[1767137935451,0.0678592,88606.0,88588.0,0.05652]
[1767137941058,0.05656,88606.0,88588.0,0.05652]
[1767137941458,0.12399356,88600.0,88588.0,0.05652]
[1767137942255,0.0113001,88599.0,88588.0,0.05652]
[1767137942453,0.0113001,88599.0,88589.0,0.05656]
[1767137942760,0.12399356,88600.0,88589.0,0.1526]
[1767137943953,0.13529356,88600.0,88590.0,0.05656]
[1767137944258,0.13529356,88600.0,88591.0,0.05656]
[1767137944958,0.13529356,88600.0,88589.0,0.09604]
[1767137945162,0.13529356,88600.0,88590.0,0.05656]
[1767137945662,0.12399356,88600.0,88590.0,0.05656]
[1767137952166,0.12399356,88600.0,88583.0,0.01147144]
[1767137952357,0.12399356,88593.0,88574.0,0.08078409]
[1767137952553,0.12399356,88584.0,88573.0,0.09604]
[1767137952765,0.1073399,88601.0,88574.0,0.05656]
[1767137952766,0.12399356,88580.0,88574.0,0.05656]
[1767137952960,0.12399356,88590.0,88574.0,0.05656]
[1767137953470,0.13529566,88584.0,88574.0,0.05656]
[1767137953862,0.0113021,88584.0,88574.0,0.05656]
[1767137954367,0.05413141,88585.0,88574.0,0.05656]
[1767137954763,0.011302,88585.0,88574.0,0.05656]
[1767137955863,0.05672934,88591.0,88574.0,0.05656]
[1767137956469,0.06803054,88591.0,88574.0,0.05656]
[1767137957268,0.0113014,88589.0,88575.0,0.05656]
[1767137958866,0.0113017,88587.0,88575.0,0.05656]
[1767137959372,0.0113013,88590.0,88575.0,0.05656]
[1767137959865,0.0113016,88588.0,88575.0,0.05656]
[1767137960672,0.05672934,88591.0,88575.0,0.05656]
[1767137961072,0.0113013,88590.0,88575.0,0.05656]
[1767137961373,0.0113015,88588.0,88575.0,0.05656]
[1767137963369,0.0113018,88586.0,88575.0,0.05656]
[1767137969483,0.05672934,88591.0,88573.0,0.00016934]
[1767137969684,0.05672934,88591.0,88567.0,0.04506197]
[1767137969685,0.0113037,88571.0,88567.0,7e-08]
[1767137969884,0.011304,88569.0,88560.0,0.09604]
[1767137970084,0.1526,88581.0,88559.0,0.05656]
[1767137970085,0.0113036,88572.0,88559.0,0.05656]
[1767137970278,0.05356736,88574.0,88559.0,0.05656]
[1767137970681,0.01147254,88575.0,88559.0,0.05656]
[1767137970878,0.00016934,88575.0,88560.0,0.011305]
[1767137973191,0.00016934,88575.0,88560.0,0.067865]
[1767137980893,0.00016934,88575.0,88562.0,0.0113047]
[1767137981093,0.00016934,88575.0,88560.0,0.05656]
[1767137990695,0.0113027,88579.0,88560.0,0.05656]
[1767137990890,0.0113027,88579.0,88560.0,0.067865]
[1767137991092,0.0113026,88580.0,88562.0,0.0113047]
[1767137991289,0.05348224,88583.0,88564.0,0.0113044]
[1767137991492,0.06478444,88583.0,88564.0,0.0113044]
[1767137991802,0.00016934,88582.0,88564.0,0.0113044]
[1767137992002,0.0113024,88581.0,88561.0,0.0113048]
[1767137993305,0.0113027,88579.0,88560.0,0.05656]
[1767137993602,0.00016934,88582.0,88560.0,0.05656]
[1767137993802,0.0113032,88575.0,88560.0,0.05656]
[1767138000500,0.0113025,88581.0,88560.0,0.067865]
[1767138000702,0.0113025,88581.0,88560.0,0.05656]
[1767138001010,0.0113025,88581.0,88562.0,0.0113048]
[1767138002311,0.0113026,88580.0,88560.0,0.05656]
[1767138002512,0.0113026,88580.0,88560.0,0.067865]
[1767138003714,0.0113028,88578.0,88560.0,0.05656]
[1767138008519,0.0113024,88581.0,88561.0,0.0113049]
[1767138009720,0.0113024,88581.0,88563.0,0.0113046]
[1767138010516,0.00016934,88582.0,88565.0,0.0113044]
[1767138010715,0.00016934,88582.0,88560.0,0.05656]
[1767138010919,0.0113007,88595.0,88574.0,0.0113032]
[1767138011122,0.0113008,88593.0,88575.0,0.1526]
[1767138011322,0.0113005,88596.0,88576.0,0.09604]
[1767138011523,0.0113008,88594.0,88576.0,0.09604]
[1767138011724,0.0113011,88592.0,88576.0,0.09604]
[1767138011915,0.0113004,88597.0,88576.0,0.09604]
[1767138012114,0.02748414,88596.0,88576.0,0.09604]
[1767138012420,0.0113004,88597.0,88577.0,0.0113028]
[1767138012610,0.02747582,88596.0,88579.0,0.0113026]
[1767138012813,0.12226976,88600.0,88579.0,0.0113026]
[1767138013009,0.02747581,88599.0,88579.0,0.0113026]
[1767138013213,0.02747581,88598.0,88576.0,0.09604]
[1767138013518,0.02747581,88597.0,88582.0,0.0113022]
[1767138013710,0.02747581,88596.0,88585.0,0.0113018]
[1767138013910,0.11096976,88600.0,88587.0,0.0113015]
[1767138014125,0.02746854,88599.0,88589.0,0.0113013]
[1767138014421,0.11096976,88600.0,88586.0,0.0113017]
[1767138014616,0.23503314,88600.0,88586.0,0.0113017]
[1767138018028,0.23503314,88600.0,88576.0,0.09604]
[1767138019327,0.23503314,88600.0,88581.0,0.0113023]
[1767138020329,0.23503314,88600.0,88576.0,0.09604]
[1767138020532,0.23503314,88600.0,88583.0,0.011302]
[1767138021935,0.11096976,88600.0,88586.0,0.0113017]
[1767138023633,0.11096976,88600.0,88583.0,0.0113021]
[1767138023828,0.11096976,88600.0,88584.0,0.05656]
[1767138026234,0.11096976,88600.0,88585.0,0.0113018]
[1767138026629,0.11096976,88600.0,88584.0,0.05656]
[1767138026829,0.23503314,88600.0,88584.0,0.05656]
[1767138028937,0.0113001,88599.0,88584.0,0.05656]
[1767138031640,0.24633314,88600.0,88584.0,0.05656]
[1767138036640,0.19192338,88600.0,88584.0,0.05656]
[1767138041142,0.05656,88600.0,88584.0,0.05656]
[1767138041539,0.05656,88600.0,88584.0,0.10053244]
[1767138041733,0.05656,88600.0,88584.0,0.05656]
[1767138041945,0.18062338,88600.0,88584.0,0.05656]
[1767138047656,0.18062338,88600.0,88580.0,0.13536578]
[1767138047856,0.18062338,88600.0,88585.0,0.05656]
[1767138050552,0.19192338,88600.0,88585.0,0.05656]
[1767138051460,0.18062338,88600.0,88585.0,0.05656]
[1767138054272,0.19192338,88600.0,88585.0,0.05656]
[1767138061874,0.06786,88600.0,88585.0,0.05656]
[1767138062079,0.05440951,88608.0,88590.0,0.12406338]
[1767138062080,0.05656,88604.0,88590.0,0.12406338]
[1767138062282,0.02737127,88603.0,88587.0,0.0113016]
[1767138062482,0.02737127,88602.0,88585.0,0.05656]
[1767138062665,0.02737127,88601.0,88585.0,0.05656]
[1767138062977,0.02737127,88600.0,88585.0,0.05656]
[1767138063179,0.0678595,88604.0,88585.0,0.05656]
[1767138063372,0.02737076,88603.0,88585.0,0.05656]
[1767138063572,0.02737076,88602.0,88585.0,0.05656]
[1767138063780,0.02737076,88601.0,88585.0,0.05656]
[1767138063976,0.0678595,88604.0,88585.0,0.05656]
[1767138064176,0.0112998,88602.0,88585.0,0.05656]
[1767138064480,0.0273708,88601.0,88585.0,0.05656]
[1767138064679,0.0112998,88602.0,88585.0,0.05656]
[1767138064880,0.02737046,88601.0,88585.0,0.05656]
[1767138065082,0.0112998,88602.0,88585.0,0.05656]
[1767138065283,0.02737015,88601.0,88585.0,0.05656]
[1767138065469,0.0112998,88602.0,88585.0,0.05656]
[1767138065670,0.02737021,88601.0,88585.0,0.05656]
[1767138065881,0.0112998,88602.0,88585.0,0.05656]
[1767138066076,0.02737021,88601.0,88585.0,0.05656]
[1767138066380,0.0112998,88602.0,88585.0,0.05656]
[1767138066582,0.02737004,88601.0,88585.0,0.05656]
[1767138066779,0.0112998,88602.0,88585.0,0.05656]
[1767138066980,0.02737004,88601.0,88585.0,0.05656]
[1767138067179,0.0112998,88602.0,88585.0,0.05656]
[1767138067376,0.02736984,88601.0,88585.0,0.05656]
[1767138067578,0.0112993,88605.0,88586.0,0.0113017]
[1767138067775,0.02736987,88604.0,88586.0,0.0113017]
[1767138067976,0.02736987,88603.0,88585.0,0.05656]
[1767138068176,0.02736987,88602.0,88585.0,0.05656]
[1767138068481,0.02736987,88601.0,88585.0,0.05656]
[1767138068670,0.0112993,88605.0,88585.0,0.05656]
[1767138068871,0.02736973,88604.0,88585.0,0.05656]
[1767138069070,0.02736973,88603.0,88585.0,0.05656]
[1767138069382,0.02736973,88602.0,88585.0,0.05656]
[1767138069580,0.02736973,88601.0,88585.0,0.05656]
[1767138069780,0.0112996,88603.0,88585.0,0.05656]
[1767138069982,0.02736964,88602.0,88585.0,0.05656]
[1767138070281,0.02736964,88601.0,88585.0,0.05656]
[1767138070478,0.0112996,88603.0,88585.0,0.05656]
[1767138070680,0.02736959,88602.0,88585.0,0.05656]
[1767138070879,0.02736959,88601.0,88585.0,0.05656]
[1767138071082,0.0112996,88603.0,88585.0,0.05656]
[1767138071283,0.02736951,88602.0,88585.0,0.05656]
[1767138071483,0.05440951,88608.0,88590.0,0.0113012]
[1767138071682,0.0273677,88607.0,88591.0,0.09604]
[1767138071884,0.05440951,88608.0,88591.0,0.09604]
[1767138072888,0.05440951,88608.0,88591.0,0.1073411]
[1767138073380,0.05440951,88608.0,88592.0,0.05656]
[1767138073780,0.05440951,88608.0,88593.0,0.0113008]
[1767138075785,0.05440951,88608.0,88595.0,0.0113005]
[1767138075990,0.05440951,88608.0,88592.0,0.05656]
[1767138075991,0.05440951,88608.0,88596.0,0.0113005]
[1767138078291,0.05440951,88608.0,88596.0,0.02287244]
[1767138078989,0.05440951,88608.0,88596.0,0.0113005]
[1767138080993,0.05440951,88608.0,88596.0,0.022843]
[1767138082296,0.05440951,88608.0,88596.0,0.0113005]
[1767138082995,0.05440951,88608.0,88596.0,0.01128771]
[1767138083289,0.05440951,88608.0,88597.0,0.0113003]
[1767138083889,0.05440951,88608.0,88573.0,0.10098081]
[1767138084091,0.0113013,88590.0,88580.0,0.15256]
[1767138084297,0.0113015,88588.0,88580.0,0.15256]
[1767138084796,0.0113011,88591.0,88580.0,0.15256]
[1767138085296,0.00016934,88594.0,88580.0,0.15256]
[1767138085492,0.0113009,88593.0,88580.0,0.15256]
[1767138086790,0.0113009,88593.0,88581.0,0.15256]
[1767138089899,0.00016934,88594.0,88581.0,0.15256]
[1767138090098,0.0113009,88593.0,88581.0,0.15256]
[1767138090500,0.00016934,88594.0,88581.0,0.15256]
[1767138091599,0.01147014,88594.0,88581.0,0.15256]
[1767138091898,0.01147014,88594.0,88578.0,0.0113027]
[1767138092098,0.01147014,88594.0,88580.0,0.15256]
[1767138093497,0.01147014,88594.0,88581.0,0.05652]
[1767138093691,0.01147014,88594.0,88581.0,0.15256]
[1767138096705,0.00016934,88594.0,88581.0,0.15256]
[1767138106310,0.00016934,88594.0,88580.0,0.0113024]
[1767138106510,0.00016934,88594.0,88581.0,0.15256]
[1767138107010,0.00016934,88594.0,88582.0,0.0113022]
[1767138118429,0.00016934,88594.0,88581.0,0.15256]
[1767138118634,0.0112998,88602.0,88585.0,0.0113018]
[1767138118832,0.0112998,88602.0,88586.0,0.05652]
[1767138119133,0.0112998,88602.0,88587.0,0.0113015]
[1767138120533,0.0112994,88605.0,88587.0,0.0113015]
[1767138120833,0.0112994,88605.0,88589.0,0.0113013]
[1767138121934,0.0112991,88607.0,88586.0,0.05652]
[1767138122436,0.0112991,88607.0,88587.0,0.0113015]
[1767138124942,0.0112991,88607.0,88589.0,0.0113013]
[1767138125731,0.0112991,88607.0,88586.0,0.05652]
[1767138125932,0.0112997,88602.0,88586.0,0.05652]
[1767138126629,0.0113,88600.0,88586.0,0.05652]
[1767138127640,0.0113004,88597.0,88586.0,0.05652]
[1767138127936,0.0113011,88591.0,88586.0,0.05652]
[1767138128141,0.0113013,88590.0,88587.0,0.05652]
[1767138128638,0.011301,88592.0,88588.0,0.05652]
[1767138130238,0.11092951,88608.0,88588.0,0.05652]
[1767138130440,0.0113008,88594.0,88588.0,0.05652]
[1767138134444,0.0112992,88606.0,88588.0,0.05652]
[1767138134938,0.11092951,88608.0,88588.0,0.05652]
[1767138135139,0.0113008,88594.0,88581.0,0.09604]
[1767138135345,0.0113008,88594.0,88582.0,0.05652]
[1767138135536,0.011301,88592.0,88582.0,0.05652]
[1767138141352,0.0112993,88605.0,88582.0,0.05652]
[1767138141554,0.0113007,88595.0,88582.0,0.05652]
[1767138141752,0.0113009,88593.0,88582.0,0.05652]
[1767138141951,0.0113011,88591.0,88582.0,0.05652]
[1767138142753,0.0113008,88594.0,88582.0,0.05652]
[1767138146455,0.0112993,88605.0,88582.0,0.05652]
[1767138146757,0.0113002,88599.0,88582.0,0.05652]
[1767138149360,0.12406568,88600.0,88582.0,0.05652]
[1767138149660,0.12406568,88600.0,88583.0,0.15256]
[1767138149855,0.0113001,88599.0,88583.0,0.15256]
[1767138150061,0.0113001,88599.0,88584.0,0.05652]
[1767138150259,0.0113001,88599.0,88578.0,0.0113026]
[1767138150457,0.0113001,88599.0,88580.0,0.15256]
[1767138156175,0.0113001,88599.0,88580.0,0.1638624]
[1767138157864,0.0113001,88599.0,88580.0,0.15256]
[1767138158066,0.12406568,88590.0,88577.0,0.00016934]
[1767138158266,0.0113017,88587.0,88578.0,0.05652]
[1767138158467,0.0113016,88588.0,88578.0,0.05652]
[1767138159068,0.12406568,88590.0,88578.0,0.05652]
[1767138164479,0.0113014,88589.0,88577.0,0.00016934]
[1767138164678,0.12406568,88590.0,88579.0,0.05652]
[1767138168282,0.13536698,88590.0,88579.0,0.05652]
[1767138196502,0.0113013,88590.0,88579.0,0.05652]
[1767138199608,0.0113016,88588.0,88579.0,0.05652]
[1767138203705,0.0113011,88591.0,88579.0,0.05652]
[1767138207409,0.0113014,88589.0,88579.0,0.05652]
[1767138214018,0.0113014,88589.0,88577.0,0.04505735]
[1767138214019,0.0113019,88585.0,88578.0,0.05652]
[1767138214518,0.0113015,88588.0,88578.0,0.05652]
[1767138216121,0.0113011,88591.0,88578.0,0.05652]
[1767138220324,0.0113011,88591.0,88578.0,0.0678227]
[1767138220524,0.0113011,88591.0,88578.0,0.05652]
[1767138222125,0.00016934,88592.0,88578.0,0.05652]
[1767138222823,4e-08,88592.0,88578.0,0.05652]
[1767138223029,0.09604,88608.0,88593.0,0.0113008]
[1767138223225,0.05652,88607.0,88595.0,0.0113005]
[1767138223431,0.15055748,88608.0,88597.0,0.0113003]
[1767138223630,0.05451748,88608.0,88597.0,0.0113003]
[1767138223830,0.05451748,88608.0,88599.0,0.0113]
[1767138224325,0.05451748,88608.0,88595.0,0.00016934]
[1767138224530,0.05451748,88608.0,88599.0,0.0113]
[1767138224830,0.05451748,88608.0,88596.0,0.0113004]
[1767138225330,0.05451748,88608.0,88595.0,0.00016934]
[1767138226223,0.05451748,88608.0,88598.0,0.0113001]
[1767138226623,0.05409164,88608.0,88601.0,0.0112998]
[1767138226833,4e-08,88608.0,88602.0,0.0112996]
[1767138227029,0.05652,88612.0,88599.0,0.0113]
[1767138227833,0.11102185,88612.0,88599.0,0.0113]
[1767138228532,0.05652,88612.0,88597.0,0.05652]
[1767138230222,0.05652,88612.0,88600.0,0.0112999]
[1767138232135,0.09604,88615.0,88600.0,0.0112999]
[1767138232530,0.09604,88615.0,88597.0,0.0678203]
[1767138233632,0.0112982,88614.0,88597.0,0.05652]
[1767138235538,0.0112985,88612.0,88597.0,0.05652]
[1767138237046,0.0112987,88610.0,88597.0,0.05652]
[1767138238636,0.011299,88608.0,88597.0,0.05652]
[1767138239235,0.06453153,88608.0,88597.0,0.05652]
[1767138240751,0.05323253,88608.0,88597.0,0.05652]
[1767138240939,0.05323253,88608.0,88596.0,0.09604]
[1767138241243,0.06453153,88608.0,88596.0,0.09604]
[1767138241641,0.0112992,88606.0,88596.0,0.09604]
[1767138243144,0.0112992,88606.0,88595.0,0.05668934]
[1767138245341,0.05323253,88608.0,88595.0,0.05668934]
[1767138245540,0.0112998,88602.0,88595.0,0.05668934]
[1767138248844,0.0112998,88602.0,88596.0,0.01128]
[1767138251037,0.0113,88601.0,88583.0,0.0113021]
[1767138251237,0.0113004,88597.0,88584.0,0.05652]
[1767138251439,0.0113013,88590.0,88585.0,0.15256]
[1767138251744,0.0113017,88587.0,88586.0,0.05652]
[1767138252037,0.0113013,88590.0,88586.0,0.05652]
[1767138252845,0.0113013,88590.0,88581.0,0.05652]
[1767138255543,0.0113009,88593.0,88581.0,0.05652]
[1767138256849,0.00016934,88595.0,88581.0,0.05652]
[1767138262340,0.00016934,88595.0,88581.0,0.0678223]
[1767138262547,0.00016934,88595.0,88583.0,0.0113021]
[1767138267444,0.00016934,88595.0,88581.0,0.05652]
[1767138278156,0.00016934,88595.0,88582.0,0.0113022]
[1767138278457,0.00016934,88595.0,88584.0,0.0113019]
[1767138278957,0.00016934,88595.0,88581.0,0.0678223]
[1767138299587,0.00016934,88595.0,88581.0,0.05652]
[1767138310486,0.12406597,88591.0,88578.0,0.00016934]
[1767138310693,0.0113028,88578.0,88569.0,0.05652]
[1767138310899,0.0113027,88579.0,88569.0,0.05652]
[1767138311401,0.12406597,88580.0,88569.0,0.05652]
[1767138316506,0.0678221,88584.0,88569.0,0.05652]